fUSD/lending_fUSD_20260421
["ID","MTS","AMOUNT","RATE_DAILY","PERIOD"]
[420912852,1776713458465,-332.35,0.0002816,2]
[420912853,1776713458475,-183.38,0.0002816,2]
[420912854,1776713458485,-570.35,0.00028162,2]
[420912855,1776713458495,-638.27,0.00028164,2]
[420912856,1776713458505,-477.92,0.00028164,2]
[420912857,1776713458516,-568.11,0.00028168,2]
[420912858,1776713458525,-570.35,0.00028169,2]
[420912859,1776713458535,-477.93,0.00028169,2]
[420912860,1776713458545,-183.38,0.00028169,2]
[420912861,1776713458555,-477.92,0.00028169,2]
[420912862,1776713458569,-568.12,0.0002817,2]
[420912863,1776713458580,-2931.56,0.000282,7]
[420912864,1776713458590,-332.33,0.00028215,2]
[420912865,1776713458601,-638.27,0.00028215,2]
[420912866,1776713458611,-183.38,0.00028215,2]
[420912867,1776713458622,-477.92,0.00028215,2]
[420912868,1776713458632,-183.38,0.00028215,2]
[420912869,1776713458643,-950.0,0.00028256,5]
[420912870,1776713458654,-281.82884053,0.0002826,2]
[420912871,1776713458664,-398.0,0.00028272,14]
[420912872,1776713458674,-1000.0,0.000283,2]
[420912873,1776713458684,-313.0,0.000283,2]
[420912874,1776713458695,-200.0,0.000283,2]
[420912875,1776713458705,-307.0,0.000283,2]
[420912876,1776713458714,-500.0,0.00028315,2]
[420912877,1776713458725,-398.0,0.00028479,14]
[420912878,1776713458735,-771.9573045,0.00028492,2]
[420912879,1776713458745,-287.61899177,0.00028493,2]
[420912880,1776713458756,-500.0,0.00028499,30]
[420912881,1776713458766,-544.05,0.00028499,120]
[420912882,1776713458776,-1404.4,0.00028499,120]
[420912883,1776713458786,-500.0,0.00028499,120]
[420912884,1776713458796,-500.0,0.00028499,2]
[420912885,1776713458806,-190.22,0.00028499,120]
[420912886,1776713458816,-1173.29,0.00028499,7]
[420912887,1776713458826,-500.0,0.00028499,120]
[420912888,1776713458837,-105033.30149778,0.000285,2]
[420912889,1776713458847,-314.7,0.000285,2]
[420912890,1776713458856,-151.0,0.000285,7]
[420912891,1776713458867,-151.0,0.000285,7]
[420912892,1776713458877,-151.0,0.000285,7]
[420912893,1776713458889,-286.507404,0.000285,7]
[420912894,1776713458899,-150.0,0.00028544,2]
[420912895,1776713458909,-363.71924009,0.00028611,5]
[420912896,1776713458919,-287.33819967,0.00028611,5]
[420912897,1776713458930,-281.82884053,0.0002862,2]
[420912898,1776713458940,-297.25,0.000287,60]
[420912899,1776713458950,-260.0,0.00028729,11]
[420912900,1776713458961,-489.38495667,0.00028767,2]
[420912901,1776713458971,-2931.56,0.000288,7]
[420912902,1776713458982,-657.15028378,0.00028804,5]
[420912903,1776713458992,-208.0,0.0002882,30]
[420912904,1776713459003,-1360.24,0.00028941,2]
[420912905,1776713459014,-500.0,0.00028942,17]
[420912906,1776713459024,-281.82884053,0.0002898,2]
[420912907,1776713459034,-332.33,0.00028981,2]
[420912908,1776713459045,-570.35,0.00028981,2]
[420912909,1776713459056,-477.92,0.00028981,2]
[420912910,1776713459066,-183.38,0.00028981,2]
[420912911,1776713459076,-572.12,0.00028981,2]
[420912912,1776713459086,-638.27,0.00028981,2]
[420912913,1776713459096,-183.38,0.00028985,2]
[420912914,1776713459106,-570.35,0.00028985,2]
[420912915,1776713459116,-392.61,0.00028985,2]
[420912916,1776713459126,-568.11,0.00028987,2]
[420912917,1776713459136,-570.37,0.00028987,2]
[420912918,1776713459147,-477.92,0.00028987,2]
[420912919,1776713459157,-332.33,0.00028987,2]
[420912920,1776713459167,-183.38,0.00028987,2]
[420912921,1776713459182,-570.35,0.00028989,2]
[420912922,1776713459192,-332.33,0.00028989,2]
[420912923,1776713459203,-638.29,0.00028991,2]
[420912924,1776713459213,-568.11,0.00028991,2]
[420912925,1776713459224,-568.11,0.00028998,2]
[420912926,1776713459234,-500.0,0.00028999,30]
[420912927,1776713459245,-544.05,0.00028999,120]
[420912928,1776713459256,-1404.4,0.00028999,120]
[420912929,1776713459267,-500.0,0.00028999,120]
[420912930,1776713459277,-257.48708597,0.00028999,120]
[420912931,1776713459288,-500.0,0.00028999,2]
[420912932,1776713459298,-1173.29,0.00028999,7]
[420912933,1776713459309,-500.0,0.00028999,120]
[420912934,1776713459319,-300.76,0.00028999,120]
[420912935,1776713459330,-2500.0,0.00028999,5]
[420912936,1776713459340,-10000.0,0.00029,7]
[420912937,1776713459350,-1757.87145845,0.00029,2]
[420912938,1776713459360,-507.17272107,0.00029,2]
[420912939,1776713459371,-1156.8749844,0.00029,2]
[420912940,1776713459381,-122756.2126494,0.00029,15]
[420912941,1776713459392,-503.91,0.00029,2]
[420912942,1776713459402,-4000.0,0.00029,3]
[420912943,1776713459413,-242.97,0.00029,15]
[420912944,1776713459423,-1338.66866669,0.00029,5]
[420912945,1776713459434,-317.04,0.00029,15]
[420912946,1776713459444,-166.814472,0.00029,7]
[420912947,1776713459454,-166.814472,0.00029,7]
[420912948,1776713459464,-166.814472,0.00029,7]
[420912949,1776713459475,-166.814467,0.00029,7]
[420912950,1776713459486,-1002.9495,0.00029,7]
[420912951,1776713459496,-1002.9495,0.00029,7]
[420912952,1776713459506,-1002.9495,0.00029,7]
[420912953,1776713459516,-1002.949508,0.00029,7]
[420912954,1776713459527,-1049.0,0.00029,2]
[420912955,1776713459537,-1373.707189,0.00029,7]
[420912956,1776713459547,-1373.707189,0.00029,7]
[420912957,1776713459557,-1373.707189,0.00029,7]
[420912958,1776713459567,-1373.707185,0.00029,7]
[420912959,1776713459577,-1760.236674,0.00029,7]
[420912960,1776713459587,-1760.236674,0.00029,7]
[420912961,1776713459598,-1760.236674,0.00029,7]
[420912962,1776713459608,-1760.236673,0.00029,7]
[420912963,1776713459618,-2240.427984,0.00029,7]
[420912964,1776713459628,-2240.427984,0.00029,7]
[420912965,1776713459638,-2240.427984,0.00029,7]
[420912966,1776713459648,-2240.427986,0.00029,7]
[420912967,1776713459658,-570.35,0.00029037,2]
[420912968,1776713459669,-1444.0,0.00029041,120]
[420912969,1776713459679,-298.26089446,0.00029041,2]
[420912970,1776713459689,-500.0,0.00029095,120]
[420912971,1776713459699,-8645.12435775,0.000291,2]
[420912972,1776713459709,-605.5646027,0.000291,7]
[420912973,1776713459719,-175.0,0.00029181,120]
[420912974,1776713459729,-2487.17,0.0002926,2]
[420912975,1776713459740,-300.0,0.0002927,2]
[420912976,1776713459749,-375.84,0.00029309,60]
[420912977,1776713459760,-281.82884053,0.0002934,2]
[420912978,1776713459771,-398.0,0.0002936,14]
[420912979,1776713459786,-2931.56,0.000294,7]
[420912980,1776713459796,-500.0,0.0002946,120]
[420912981,1776713459807,-250.0,0.00029495,13]
[420912982,1776713459817,-5100.0,0.000295,10]
[420912983,1776713459827,-1520.063736,0.000295,2]
[420912984,1776713459838,-309.29654756,0.00029589,2]
[420912985,1776713459848,-6400.0,0.000296,10]
[420912986,1776713459858,-213.38714215,0.000297,2]
[420912987,1776713459868,-380.52687237,0.000297,2]
[420912988,1776713459878,-1200.0,0.000297,10]
[420912989,1776713459889,-1447.56490554,0.000297,2]
[420912990,1776713459899,-1496.03290909,0.000297,2]
[420912991,1776713459910,-281.82884053,0.000297,2]
[420912992,1776713459921,-250.0,0.0002977,2]
[420912993,1776713459931,-398.0,0.00029774,14]
[420912994,1776713459941,-250.0,0.0002979,14]
[420912995,1776713459952,-179.06984396,0.0002979,2]
[420912996,1776713459961,-500.0,0.00029799,30]
[420912997,1776713459972,-470.75562238,0.00029799,30]
[420912998,1776713459982,-544.05,0.00029799,120]
[420912999,1776713459992,-544.05,0.00029799,120]
[420913000,1776713460002,-544.05,0.00029799,120]
[420913001,1776713460012,-544.05,0.00029799,120]
[420913002,1776713460023,-544.05,0.00029799,120]
[420913003,1776713460033,-544.05,0.00029799,120]
[420913004,1776713460043,-544.05,0.00029799,120]
[420913005,1776713460053,-544.05,0.00029799,120]
[420913006,1776713460063,-544.05,0.00029799,120]
[420913007,1776713460073,-544.05,0.00029799,120]
[420913008,1776713460083,-544.05,0.00029799,120]
[420913009,1776713460093,-544.05,0.00029799,120]
[420913010,1776713460103,-544.05,0.00029799,120]
[420913011,1776713460114,-544.05,0.00029799,120]
[420913012,1776713460125,-544.05,0.00029799,120]
[420913013,1776713460135,-544.27455327,0.00029799,120]
[420913014,1776713460146,-1404.4,0.00029799,120]
[420913015,1776713460156,-1404.4,0.00029799,120]
[420913016,1776713460166,-1404.4,0.00029799,120]
[420913017,1776713460177,-1404.4,0.00029799,120]
[420913018,1776713460187,-1404.4,0.00029799,120]
[420913019,1776713460197,-1404.4,0.00029799,120]
[420913020,1776713460207,-1404.4,0.00029799,120]
[420913021,1776713460218,-1404.4,0.00029799,120]
[420913022,1776713460233,-1404.4,0.00029799,120]
[420913023,1776713460244,-1404.4,0.00029799,120]
[420913024,1776713460254,-1404.4,0.00029799,120]
[420913025,1776713460265,-1404.4,0.00029799,120]
[420913026,1776713460275,-1404.4,0.00029799,120]
[420913027,1776713460285,-1404.4,0.00029799,120]
[420913028,1776713460295,-1404.4,0.00029799,120]
[420913029,1776713460305,-1404.55548933,0.00029799,120]
[420913030,1776713460315,-500.0,0.00029799,120]
[420913031,1776713460325,-500.0,0.00029799,120]
[420913032,1776713460336,-500.0,0.00029799,120]
[420913033,1776713460346,-500.0,0.00029799,120]
[420913034,1776713460356,-500.0,0.00029799,120]
[420913035,1776713460366,-547.007232,0.00029799,120]
[420913036,1776713460376,-500.0,0.00029799,2]
[420913037,1776713460386,-1173.29,0.00029799,7]
[420913038,1776713460396,-1173.29,0.00029799,7]
[420913039,1776713460406,-1173.29,0.00029799,7]
[420913040,1776713460416,-1173.29,0.00029799,7]
[420913041,1776713460426,-1173.29,0.00029799,7]
[420913042,1776713460436,-1173.29,0.00029799,7]
[420913043,1776713460446,-1173.29,0.00029799,7]
[420913044,1776713460456,-1173.29,0.00029799,7]
[420913045,1776713460466,-1173.29,0.00029799,7]
[420913046,1776713460477,-1173.29,0.00029799,7]
[420913047,1776713461057,-1173.29,0.00029799,7]
[420913048,1776713461075,-1173.29,0.00029799,7]
[420913049,1776713461084,-1173.29,0.00029799,7]
[420913050,1776713461094,-1173.29,0.00029799,7]
[420913051,1776713461103,-1173.29,0.00029799,7]
[420913052,1776713461113,-1173.50370033,0.00029799,7]
[420913053,1776713461123,-500.0,0.00029799,120]
[420913054,1776713461132,-500.0,0.00029799,120]
[420913055,1776713461142,-500.0,0.00029799,120]
[420913056,1776713461151,-500.0,0.00029799,120]
[420913057,1776713461160,-500.0,0.00029799,120]
[420913058,1776713461170,-500.0,0.00029799,120]
[420913059,1776713461179,-500.0,0.00029799,120]
[420913060,1776713461189,-500.0,0.00029799,120]
[420913061,1776713461199,-500.0,0.00029799,120]
[420913062,1776713461208,-297.88510554,0.00029799,120]
[420913063,1776713461218,-2500.0,0.00029799,5]
[420913064,1776713461227,-2500.0,0.00029799,5]
[420913065,1776713461237,-2500.0,0.00029799,5]
[420913066,1776713461247,-2500.0,0.00029799,5]
[420913067,1776713461257,-2500.0,0.00029799,5]
[420913068,1776713461267,-2500.0,0.00029799,5]
[420913069,1776713461276,-2500.0,0.00029799,5]
[420913070,1776713461286,-2500.0,0.00029799,5]
[420913071,1776713461296,-2500.0,0.00029799,5]
[420913072,1776713461306,-2500.0,0.00029799,5]
[420913073,1776713461315,-2500.0,0.00029799,5]
[420913074,1776713461324,-321.34085668,0.00029799,5]
[420913075,1776713461334,-151.0,0.00029799,7]
[420913076,1776713461343,-151.0,0.00029799,7]
[420913077,1776713461353,-151.0,0.00029799,7]
[420913078,1776713461362,-168731.18091853,0.000298,2]
[420913079,1776713461372,-178.22382868,0.000298,10]
[420913080,1776713461382,-159621.86306282,0.000298,2]
[420913081,1776713461392,-360320.14522717,0.000298,2]
[420913082,1776713461401,-289870.92443718,0.000298,2]
[420913083,1776713462936,-10100.56928562,0.000298,2]
[420913085,1776713714794,5782.92,0.0001672,120]
[420913101,1776714632000,-160.28,8.985e-05,2]
[420913102,1776714632010,-300.0,8.985e-05,2]
[420913103,1776714632020,-250.0,8.985e-05,2]
[420913104,1776714632029,-266.0,8.985e-05,2]
[420913105,1776714632038,-300.0,8.988e-05,2]
[420913106,1776714632047,-128.85503512,8.988e-05,2]
[420913107,1776714632058,-121.14496488,8.988e-05,2]
[420913108,1776714632067,-289.21383177,8.999e-05,2]
[420913109,1776714632077,-300.0,8.999e-05,2]
[420913110,1776714632086,-1200.0,8.999e-05,2]
[420913111,1776714632095,-2337.13290231,9e-05,2]
[420913112,1776714632107,-7662.92871598,9e-05,2]
[420913113,1776714632117,-14388.51838448,9.162e-05,2]
[420913114,1776714632127,-227.43219548,9.171e-05,2]
[420913115,1776714632137,-182.48676972,9.171e-05,2]
[420913116,1776714632146,-500.0,9.171e-05,2]
[420913117,1776714632155,-500.0,9.171e-05,2]
[420913118,1776714632165,-186.261771,9.171e-05,2]
[420913119,1776714632175,-579.08538772,9.171e-05,2]
[420913120,1776714632185,-500.0,9.171e-05,2]
[420913121,1776714632194,-641.5186499,9.171e-05,2]
[420913122,1776714632204,-159.20253683,9.171e-05,2]
[420913123,1776714632214,-249.65927094,9.172e-05,2]
[420913124,1776714632225,-11598.41380047,9.172e-05,2]
[420913125,1776714632245,-439478.27162859,9.172e-05,2]
[420913126,1776714632254,-2500.0,9.172e-05,2]
[420913127,1776714632263,-260.0,9.863e-05,2]
[420913128,1776714632272,-250.0,9.883e-05,2]
[420913129,1776714632283,-300.0,9.883e-05,2]
[420913130,1776714632293,-5000.0,9.883e-05,2]
[420913131,1776714632302,-181.0,9.899e-05,2]
[420913132,1776714632311,-1680.0,9.899e-05,2]
[420913133,1776714632321,-200.0,0.00010527,2]
[420913134,1776714632333,-1528.66,0.00010644,2]
[420913135,1776714632343,-240.0,0.00010889,2]
[420913136,1776714632354,-1000.0,0.00010899,2]
[420913137,1776714632364,-150.0,0.00010959,2]
[420913138,1776714632373,-3240.0,0.00010959,2]
[420913139,1776714632383,-500.0,0.00010991,2]
[420913141,1776714632392,-1328.11473568,0.00011099,2]
[420913142,1776714632401,-151.0,0.00011548,2]
[420913143,1776714632410,-151.0,0.00011559,2]
[420913144,1776714632419,-1328.1147356,0.00011978,2]
[420913145,1776714632428,-166.02,0.00012099,2]
[420913146,1776714632437,-2817.0,0.00012893,2]
[420913147,1776714632446,-250.0,0.00013,2]
[420913148,1776714632461,-166.02,0.00013097,2]
[420913149,1776714632471,-833.83,0.00013136,2]
[420913150,1776714632480,-62155.54,0.00013176,2]
[420913151,1776714632490,-1500.0,0.00013272,2]
[420913152,1776714632499,-691.0,0.00013425,2]
[420913153,1776714632509,-691.0,0.00013425,2]
[420913154,1776714632519,-691.0,0.00013425,2]
[420913155,1776714632530,-691.0,0.00013425,2]
[420913156,1776714632539,-691.0,0.00013425,2]
[420913157,1776714632549,-691.0,0.00013425,2]
[420913158,1776714632559,-691.0,0.00013425,2]
[420913159,1776714632568,-691.0,0.00013425,2]
[420913160,1776714632579,-691.0,0.00013425,2]
[420913161,1776714632589,-691.0,0.00013425,2]
[420913162,1776714632599,-691.0,0.00013425,2]
[420913163,1776714632609,-691.0,0.00013425,2]
[420913164,1776714632619,-691.0,0.00013425,2]
[420913165,1776714632628,-691.0,0.00013425,2]
[420913166,1776714632638,-691.0,0.00013425,2]
[420913167,1776714632648,-691.0,0.00013425,2]
[420913168,1776714632659,-691.0,0.00013425,2]
[420913169,1776714632669,-691.0,0.00013425,2]
[420913170,1776714632679,-691.0,0.00013425,2]
[420913171,1776714632689,-691.0,0.00013425,2]
[420913172,1776714632699,-691.0,0.00013425,2]
[420913173,1776714632708,-691.0,0.00013425,2]
[420913174,1776714632718,-691.0,0.00013425,2]
[420913175,1776714632727,-710.56133224,0.00013425,2]
[420913176,1776714632737,-160.0,0.00013465,2]
[420913177,1776714632746,-260.0,0.00013471,2]
[420913178,1776714632756,-500.0,0.00013698,2]
[420913179,1776714632766,-500.0,0.00013698,2]
[420913180,1776714632775,-500.0,0.00013698,2]
[420913181,1776714632785,-500.0,0.00013698,2]
[420913182,1776714632794,-500.0,0.00013698,2]
[420913183,1776714632804,-500.0,0.00013698,2]
[420913184,1776714632813,-1645.77,0.00013698,2]
[420913185,1776714632823,-1645.77,0.00013698,2]
[420913186,1776714632833,-500.0,0.00013698,2]
[420913187,1776714632842,-500.0,0.00013698,2]
[420913188,1776714632857,-500.0,0.00013698,2]
[420913189,1776714632867,-500.0,0.00013698,2]
[420913190,1776714632876,-500.0,0.00013698,2]
[420913191,1776714632886,-470.36,0.00013698,2]
[420913192,1776714632896,-500.0,0.00013698,2]
[420913193,1776714632906,-500.0,0.00013698,2]
[420913194,1776714632916,-500.0,0.00013698,2]
[420913195,1776714632926,-166.66,0.00013699,2]
[420913196,1776714632936,-152.06181351,0.00013699,2]
[420913197,1776714632946,-381.44917048,0.00013699,2]
[420913198,1776714632957,-500.0,0.00013699,2]
[420913199,1776714632967,-500.0,0.00013699,2]
[420913200,1776714632977,-500.0,0.00013699,2]
[420913201,1776714632988,-500.0,0.00013699,2]
[420913202,1776714632998,-500.0,0.00013699,2]
[420913203,1776714633009,-500.0,0.00013699,2]
[420913204,1776714633019,-567.59339456,0.00013699,2]
[420913205,1776714633029,-500.0,0.00013699,2]
[420913206,1776714633042,-188.84728613,0.00013699,2]
[420913207,1776714633052,-505.0,0.0001372,2]
[420913208,1776714633063,-505.07312,0.0001372,2]
[420913209,1776714633073,-2349.2141833,0.00013751,2]
[420913210,1776714633089,-906.78256907,0.00013751,2]
[420913211,1776714633102,-900.10494811,0.00013751,2]
[420913212,1776714633119,-522.06829952,0.00013751,2]
[420913213,1776714633129,-166.66,0.00013836,2]
[420913214,1776714633143,-166.66,0.00013973,2]
[420913215,1776714633154,-166.02,0.00014096,2]
[420913216,1776714633164,-166.66,0.0001411,2]
[420913217,1776714633174,-615.99498257,0.00014193,2]
[420913218,1776714633186,-712.11975303,0.00014193,2]
[420913219,1776714633196,-166.66,0.00014247,2]
[420913220,1776714633206,-1000.0,0.00014247,2]
[420913221,1776714633216,-1000.0,0.00014247,2]
[420913222,1776714633225,-1000.0,0.00014247,2]
[420913223,1776714633235,-1000.0,0.00014247,2]
[420913224,1776714633245,-1000.0,0.00014247,2]
[420913225,1776714633255,-452.9027958,0.00014247,2]
[420913226,1776714633268,-1000.0,0.00014247,2]
[420913227,1776714633278,-590.0,0.00014274,2]
[420913228,1776714633288,-166.66,0.00014384,2]
[420913229,1776714633298,-518.4,0.00014549,2]
[420913230,1776714633308,-501.24,0.00014565,2]
[420913231,1776714633318,-1500.0,0.00014795,2]
[420913232,1776714633329,-1500.0,0.00014795,2]
[420913233,1776714633339,-1500.0,0.00014795,2]
[420913234,1776714633351,-1500.0,0.00014795,2]
[420913235,1776714633361,-1500.0,0.00014795,2]
[420913236,1776714633370,-518.4,0.00014823,2]
[420913237,1776714633380,-501.24,0.00014839,2]
[420913238,1776714633390,-153.14682902,0.000149,2]
[420913239,1776714633400,-153.14682901,0.000149,2]
[420913240,1776714633410,-153.14682901,0.000149,2]
[420913241,1776714633419,-505.0,0.00014947,3]
[420913242,1776714633429,-2000.0,0.00015,2]
[420913243,1776714633439,-300.0,0.00015,2]
[420913244,1776714633449,-518.4,0.00015097,2]
[420913245,1776714633459,-501.24,0.00015113,2]
[420913246,1776714633468,-55.91751817,0.00015152,2]
[420913247,1776714633482,-1060.14397087,0.00015152,2]
[420913248,1776714633511,-883.93851096,0.00015152,2]
[420913249,1776714633520,-785.03717281,0.0001531,2]
[420913275,1776714638911,-2551.37717264,0.00011099,2]
[420913277,1776714638928,-284.14433268,0.00011099,2]
[420913295,1776714640362,-414.751446,0.00011099,2]
[420913296,1776714640374,-266.0,0.00011099,2]
[420913297,1776714640677,-24600.49414311,0.00011099,2]
[420913298,1776714640687,-9214.95282719,0.0001531,2]
[420913299,1776714640697,-395.70211527,0.00015342,2]
[420913300,1776714640706,-500.0,0.00015342,2]
[420913301,1776714640715,-500.0,0.00015342,2]
[420913302,1776714640725,-500.0,0.00015342,2]
[420913303,1776714640734,-500.0,0.00015342,2]
[420913304,1776714640743,-518.4,0.00015371,2]
[420913305,1776714640753,-501.24,0.00015387,2]
[420913306,1776714640763,-4000.0,0.00015507,2]
[420913307,1776714640772,-518.4,0.00015645,2]
[420913308,1776714640782,-356.28,0.00015661,2]
[420913310,1776714640792,-1046.0,0.00015832,2]
[420913312,1776714640802,-623.0,0.00015832,2]
[420913313,1776714640811,-364.0,0.00015832,2]
[420913314,1776714640821,-150.0,0.00015832,2]
[420913315,1776714640830,-500.0,0.0001589,2]
[420913316,1776714640840,-500.0,0.0001589,2]
[420913317,1776714640850,-4000.0,0.00015895,2]
[420913318,1776714640859,-370.08,0.00015919,2]
[420913320,1776714640869,-812.84,0.00016116,2]
[420913321,1776714640878,-8103.34,0.00016116,2]
[420913322,1776714640887,-505.0,0.00016175,4]
[420913323,1776714640896,-4000.0,0.00016282,2]
[420913324,1776714640906,-443.55,0.00016297,2]
[420913325,1776714640915,-1328.1147356,0.00016409,2]
[420913326,1776714640924,-2000.0,0.0001662,2]
[420913327,1776714640933,-2000.0,0.0001662,2]
[420913328,1776714640942,-2000.0,0.0001662,2]
[420913329,1776714640952,-2000.0,0.0001662,2]
[420913330,1776714640962,-4000.0,0.0001667,2]
[420913331,1776714640971,-260.0,0.00016692,2]
[420913332,1776714640980,-277.184069,0.00016751,7]
[420913333,1776714640989,-414.315828,0.00016751,7]
[420913334,1776714640999,-500.0,0.00016849,2]
[420913335,1776714641008,-500.0,0.00016849,2]
[420913336,1776714641017,-350.0,0.00017,2]
[420913337,1776714641026,-2000.0,0.00017046,2]
[420913338,1776714641035,-4000.0,0.00017058,2]
[420913339,1776714641044,-500.0,0.00017178,2]
[420913340,1776714641054,-505.0,0.00017402,5]
[420913341,1776714641063,-1048.37339417,0.00017542,2]
[420913342,1776714641072,-1083.92504374,0.00017542,2]
[420913343,1776714641081,-1087.27504708,0.00017542,2]
[420913344,1776714641091,-1145.58120515,0.00017542,2]
[420913345,1776714641100,-1032.61721627,0.00017542,2]
[420913346,1776714641111,-577.7,0.00017728,2]
[420913347,1776714641120,-833.83,0.0001839,2]
[420913348,1776714641129,-1328.1147356,0.00018624,2]
[420913349,1776714641138,-505.0,0.0001863,6]
[420913350,1776714641147,-350.045,0.00018832,2]
[420913351,1776714641157,-300.0,0.000189,6]
[420913352,1776714641166,-2000.0,0.0001894,2]
[420913353,1776714641175,-400.0,0.00019,2]
[420913354,1776714641186,-260.0,0.00019567,2]
[420913355,1776714641195,-505.0,0.00019857,7]
[420913356,1776714641205,-362.0,0.0002,2]
[420913357,1776714641214,-154.0,0.0002,2]
[420913358,1776714641223,-211.9,0.0002,2]
[420913359,1776714641232,-591.0,0.0002,2]
[420913360,1776714641241,-1277.0,0.0002,2]
[420913361,1776714641251,-1050.0,0.0002,2]
[420913362,1776714641259,-287.0,0.0002,2]
[420913363,1776714641269,-205.0,0.0002,2]
[420913364,1776714641278,-1490.0,0.0002,2]
[420913365,1776714641287,-406.0,0.0002,2]
[420913366,1776714641297,-348.0,0.0002,2]
[420913367,1776714641306,-2080.85,0.0002,30]
[420913368,1776714641315,-2096.0,0.00020475,2]
[420913369,1776714641324,-500.0,0.00020481,2]
[420913370,1776714641333,-308.474009,0.00020691,2]
[420913371,1776714641342,-303.354425,0.00020691,7]
[420913372,1776714641351,-2000.0,0.00020834,2]
[420913373,1776714641361,-1328.1147356,0.00020839,2]
[420913374,1776714641370,-2568.94,0.00020951,2]
[420913375,1776714641379,-362.0,0.00021,2]
[420913376,1776714641389,-154.0,0.00021,2]
[420913377,1776714641398,-591.0,0.00021,2]
[420913378,1776714641408,-1277.0,0.00021,2]
[420913379,1776714641417,-1050.0,0.00021,2]
[420913380,1776714641426,-287.0,0.00021,2]
[420913381,1776714641435,-450.0,0.00021,2]
[420913382,1776714641445,-205.0,0.00021,2]
[420913383,1776714641454,-1490.0,0.00021,2]
[420913384,1776714641463,-406.0,0.00021,2]
[420913385,1776714641472,-348.0,0.00021,2]
[420913386,1776714641481,-505.0,0.00021084,8]
[420913387,1776714641491,-378.06549011,0.00021095,2]
[420913388,1776714641508,-121.93450989,0.00021095,2]
[420913389,1776714641516,-632.06548991,0.00021218,7]
[420913390,1776714641528,-132.93451009,0.00021218,7]
[420913391,1776714641537,-209.32871064,0.00021218,7]
[420913399,1776714643215,-28116.76709439,0.00011364,2]
[420913400,1776714643225,-3743.23290211,0.00015832,2]
[420913405,1776714646111,-505.0,0.0001372,2]
[420913406,1776714646120,-36.76709789,0.00015832,2]
[420913407,1776714646130,-3780.0,0.00018832,2]
[420913408,1776714646139,-151.0,0.00019619,2]
[420913409,1776714646148,-524.0,0.00021218,7]
[420913410,1776714646158,-701.0,0.00021218,7]
[420913411,1776714646167,-1080.0,0.00021218,7]
[420913412,1776714646176,-1645.77,0.00021294,2]
[420913413,1776714646185,-500.0,0.00021294,2]
[420913414,1776714646195,-158.0,0.000214,5]
[420913415,1776714646204,-2000.0,0.000214,2]
[420913416,1776714646214,-227.731272,0.00021406,7]
[420913417,1776714646223,-500.0,0.00021728,2]
[420913418,1776714646232,-2760.639,0.00021832,2]
[420913419,1776714646241,-518.0,0.00022,2]
[420913420,1776714646251,-210.0,0.00022,2]
[420913421,1776714646260,-577.99270289,0.00022,2]
[420913422,1776714646270,-362.0,0.00022,2]
[420913423,1776714646280,-154.0,0.00022,2]
[420913424,1776714646290,-591.0,0.00022,2]
[420913425,1776714646299,-1277.0,0.00022,2]